fUST/lending_fUST_20241007
["ID","MTS","AMOUNT","RATE_DAILY","PERIOD"]
[339974108,1728245479167,-500.0,0.00015616,2]
[339974109,1728245479177,-490.41501463,0.00015616,2]
[339974110,1728245479187,-733.55402,0.00015616,2]
[339974111,1728245479197,-387.21680963,0.00015616,2]
[339974112,1728245479207,-500.0,0.00015616,2]
[339974113,1728245479217,-500.0,0.00015616,2]
[339974114,1728245479229,-733.55402,0.00015616,2]
[339974115,1728245479239,-559.4,0.00015616,2]
[339974116,1728245479249,-620.94,0.00015616,2]
[339974117,1728245479260,-570.64,0.00015616,2]
[339974118,1728245479270,-590.68,0.00015616,2]
[339974119,1728245479280,-525.69,0.00015616,2]
[339974120,1728245479291,-731.95,0.00015616,2]
[339974121,1728245479301,-151.0,0.00015616,2]
[339974122,1728245479311,-500.0,0.00015616,2]
[339974123,1728245479321,-500.0,0.00015616,2]
[339974124,1728245479331,-1541.796647,0.00015616,2]
[339974125,1728245479348,-1541.796647,0.00015616,2]
[339974126,1728245479359,-164.707236,0.00015616,2]
[339974127,1728245479369,-749.78,0.00015616,2]
[339974128,1728245479379,-500.0,0.00015616,2]
[339974129,1728245479389,-500.0,0.00015616,2]
[339974130,1728245479399,-500.0,0.00015616,2]
[339974131,1728245479409,-500.0,0.00015616,2]
[339974132,1728245479420,-164.707236,0.00015616,2]
[339974133,1728245479430,-500.0,0.00015616,2]
[339974134,1728245479439,-500.0,0.00015616,2]
[339974135,1728245479449,-500.0,0.00015616,2]
[339974136,1728245479459,-850.21,0.00015616,2]
[339974137,1728245479468,-700.34,0.00015616,2]
[339974138,1728245479478,-500.0,0.00015616,2]
[339974139,1728245479487,-616.70199,0.00015616,2]
[339974140,1728245479499,-439.60297081,0.00015616,2]
[339974141,1728245479509,-793.43,0.00015616,2]
[339974142,1728245479519,-681.81,0.00015616,2]
[339974143,1728245479529,-500.0,0.00015616,2]
[339974144,1728245479539,-500.0,0.00015616,2]
[339974145,1728245479549,-3394.923181,0.00015616,2]
[339974146,1728245479559,-618.07,0.00015616,2]
[339974147,1728245479569,-905.5,0.00015616,2]
[339974148,1728245479579,-3394.923181,0.00015616,2]
[339974149,1728245479591,-232.89053,0.00015616,2]
[339974150,1728245479601,-500.0,0.00015616,2]
[339974151,1728245479611,-247.92716479,0.00015616,2]
[339974152,1728245479620,-232.89053,0.00015616,2]
[339974153,1728245479631,-1004.36,0.00015616,2]
[339974154,1728245479642,-769.79,0.00015616,2]
[339974155,1728245479653,-556.25,0.00015616,2]
[339974156,1728245479662,-500.0,0.00015616,2]
[339974157,1728245479672,-704.99,0.00015616,2]
[339974158,1728245479683,-511.68,0.00015616,2]
[339974159,1728245479694,-151.0,0.00015616,2]
[339974160,1728245479706,-500.0,0.00015616,2]
[339974161,1728245479717,-500.0,0.00015616,2]
[339974162,1728245479727,-500.0,0.00015616,2]
[339974163,1728245479737,-503.96422753,0.00015616,2]
[339974164,1728245479746,-500.0,0.00015616,2]
[339974165,1728245479757,-500.0,0.00015616,2]
[339974166,1728245479766,-716.88,0.00015616,2]
[339974167,1728245479777,-500.0,0.00015616,2]
[339974168,1728245479787,-500.0,0.00015616,2]
[339974169,1728245479797,-151.0,0.00015616,2]
[339974170,1728245479807,-1213.0,0.00015616,2]
[339974171,1728245479817,-500.0,0.00015616,2]
[339974172,1728245479827,-502.96,0.00015616,2]
[339974173,1728245479840,-500.0,0.00015616,2]
[339974174,1728245479850,-396.110102,0.00015616,2]
[339974175,1728245479860,-396.110102,0.00015616,2]
[339974176,1728245479870,-500.0,0.00015616,2]
[339974177,1728245479881,-500.0,0.00015616,2]
[339974178,1728245479891,-500.0,0.00015616,2]
[339974179,1728245479901,-255.019859,0.00015616,2]
[339974180,1728245479911,-500.0,0.00015616,2]
[339974181,1728245479922,-255.019859,0.00015616,2]
[339974182,1728245479933,-640.83,0.00015616,2]
[339974183,1728245479944,-799.58,0.00015616,2]
[339974184,1728245479954,-500.0,0.00015616,2]
[339974185,1728245479965,-500.0,0.00015616,2]
[339974186,1728245479975,-2198.44,0.00015616,2]
[339974187,1728245479985,-348.967678,0.00015616,2]
[339974188,1728245479995,-500.0,0.00015616,2]
[339974189,1728245480006,-701.74,0.00015616,2]
[339974190,1728245480018,-500.0,0.00015616,2]
[339974191,1728245480028,-348.967678,0.00015616,2]
[339974192,1728245480038,-500.0,0.00015616,2]
[339974193,1728245480049,-500.0,0.00015616,2]
[339974194,1728245480059,-23220.06,0.00015616,2]
[339974195,1728245480069,-513.24,0.00015616,2]
[339974196,1728245480080,-500.0,0.00015616,2]
[339974197,1728245480092,-1825.72,0.00015616,2]
[339974198,1728245480102,-500.0,0.00015616,2]
[339974199,1728245480112,-3809.25,0.00015616,2]
[339974200,1728245480121,-689.01,0.00015616,2]
[339974201,1728245480131,-712.377784,0.00015616,2]
[339974202,1728245480142,-580.971183,0.00015616,2]
[339974203,1728245480154,-1068.37,0.00015616,2]
[339974204,1728245480164,-601.06212187,0.00015616,2]
[339974205,1728245480174,-712.377784,0.00015616,2]
[339974206,1728245480184,-500.0,0.00015616,2]
[339974207,1728245480195,-580.971183,0.00015616,2]
[339974208,1728245480209,-151.0,0.00015616,2]
[339974209,1728245480220,-500.0,0.00015616,2]
[339974210,1728245480231,-500.0,0.00015616,2]
[339974211,1728245480243,-500.0,0.00015616,2]
[339974212,1728245480253,-1019.82,0.00015616,2]
[339974213,1728245480265,-1687.94,0.00015616,2]
[339974214,1728245480276,-151.0,0.00015616,2]
[339974215,1728245480288,-500.0,0.00015616,2]
[339974216,1728245480300,-500.0,0.00015616,2]
[339974217,1728245480311,-500.0,0.00015616,2]
[339974218,1728245480322,-500.0,0.00015616,2]
[339974219,1728245480332,-611.72,0.00015616,2]
[339974220,1728245480345,-272.178325,0.00015616,2]
[339974221,1728245480354,-500.0,0.00015616,2]
[339974222,1728245480364,-500.0,0.00015616,2]
[339974223,1728245480373,-500.0,0.00015616,2]
[339974224,1728245480383,-500.0,0.00015616,2]
[339974225,1728245480395,-512.06224738,0.00015616,2]
[339974226,1728245480406,-564.15,0.00015616,2]
[339974227,1728245480417,-608.82,0.00015616,2]
[339974228,1728245480426,-605.81,0.00015616,2]
[339974229,1728245480551,-1003.97,0.00015616,2]
[339974230,1728245480563,-500.0,0.00015616,2]
[339974231,1728245480576,-500.0,0.00015616,2]
[339974232,1728245480587,-541.62,0.00015616,2]
[339974233,1728245480597,-521.089365,0.00015616,2]
[339974234,1728245480607,-539.970348,0.00015616,2]
[339974235,1728245480619,-521.089365,0.00015616,2]
[339974236,1728245480629,-539.970348,0.00015616,2]
[339974237,1728245480638,-589.17,0.00015616,2]
[339974238,1728245480647,-500.0,0.00015616,2]
[339974239,1728245480657,-500.0,0.00015616,2]
[339974240,1728245480666,-1166.46,0.00015616,2]
[339974241,1728245480676,-500.0,0.00015616,2]
[339974242,1728245480686,-231.45188318,0.00015616,2]
[339974243,1728245480695,-606.03,0.00015616,2]
[339974244,1728245480705,-500.0,0.00015616,2]
[339974245,1728245480715,-578.55,0.00015616,2]
[339974246,1728245480725,-500.0,0.00015616,2]
[339974247,1728245480735,-526.31,0.00015616,2]
[339974248,1728245480746,-151.0,0.00015616,2]
[339974249,1728245480755,-500.0,0.00015616,2]
[339974250,1728245480765,-500.0,0.00015616,2]
[339974251,1728245480774,-725.991254,0.00015616,2]
[339974252,1728245480783,-500.0,0.00015616,2]
[339974253,1728245480793,-616.98,0.00015616,2]
[339974254,1728245480804,-725.991254,0.00015616,2]
[339974255,1728245480814,-500.0,0.00015616,2]
[339974256,1728245480824,-500.0,0.00015616,2]
[339974257,1728245480833,-500.0,0.00015616,2]
[339974258,1728245480845,-500.0,0.00015616,2]
[339974259,1728245480854,-500.0,0.00015616,2]
[339974260,1728245480863,-606.61573837,0.00015616,2]
[339974261,1728245480872,-500.0,0.00015616,2]
[339974262,1728245480882,-151.0,0.00015616,2]
[339974263,1728245480891,-667.06,0.00015616,2]
[339974264,1728245480901,-500.0,0.00015616,2]
[339974265,1728245480911,-500.0,0.00015616,2]
[339974266,1728245480920,-529.178314,0.00015616,2]
[339974267,1728245480930,-529.178314,0.00015616,2]
[339974268,1728245480940,-500.0,0.00015616,2]
[339974269,1728245480950,-500.0,0.00015616,2]
[339974270,1728245480959,-500.0,0.00015616,2]
[339974271,1728245480968,-500.0,0.00015616,2]
[339974272,1728245480977,-500.0,0.00015616,2]
[339974273,1728245480986,-500.0,0.00015616,2]
[339974274,1728245480996,-500.0,0.00015616,2]
[339974275,1728245481005,-151.0,0.00015616,2]
[339974276,1728245481016,-1194.140839,0.00015616,2]
[339974277,1728245481025,-151.0,0.00015616,2]
[339974278,1728245481034,-1194.140839,0.00015616,2]
[339974279,1728245481044,-500.0,0.00015616,2]
[339974280,1728245481054,-1854.38,0.00015616,2]
[339974281,1728245481063,-500.0,0.00015616,2]
[339974282,1728245481072,-500.0,0.00015616,2]
[339974283,1728245481082,-2983.12,0.00015616,2]
[339974284,1728245481092,-500.0,0.00015616,2]
[339974285,1728245481101,-244.009806,0.00015616,2]
[339974286,1728245481111,-244.009806,0.00015616,2]
[339974287,1728245481121,-667.95,0.00015616,2]
[339974288,1728245481131,-500.0,0.00015616,2]
[339974289,1728245481141,-518.7,0.00015616,2]
[339974290,1728245481155,-830.07,0.00015616,2]
[339974291,1728245481165,-500.0,0.00015616,2]
[339974292,1728245481175,-500.0,0.00015616,2]
[339974293,1728245481184,-500.0,0.00015616,2]
[339974294,1728245481194,-2165.89,0.00015616,2]
[339974295,1728245481206,-500.0,0.00015616,2]
[339974296,1728245481217,-880.03,0.00015616,2]
[339974297,1728245481228,-151.0,0.00015616,2]
[339974298,1728245481239,-500.0,0.00015616,2]
[339974299,1728245481250,-3094.43,0.00015616,2]
[339974300,1728245481262,-701.44,0.00015616,2]
[339974301,1728245481274,-500.0,0.00015616,2]
[339974302,1728245481285,-500.0,0.00015616,2]
[339974303,1728245481297,-4696.79,0.00015616,2]
[339974304,1728245481309,-1213.43,0.00015616,2]
[339974305,1728245481321,-500.0,0.00015616,2]
[339974306,1728245481332,-505.3,0.00015616,2]
[339974307,1728245481348,-500.0,0.00015616,2]
[339974308,1728245481359,-507.4,0.00015616,2]
[339974309,1728245481370,-500.0,0.00015616,2]
[339974310,1728245481381,-500.0,0.00015616,2]
[339974311,1728245481392,-633.72535749,0.00015616,2]
[339974312,1728245481402,-2910.0,0.0001573,2]
[339974313,1728245481414,-160.0,0.00015792,2]
[339974314,1728245481424,-6267.33360919,0.000158,2]
[339974315,1728245481434,-500.0,0.00015873,2]
[339974316,1728245481446,-500.0,0.00015873,2]
[339974317,1728245481457,-500.0,0.00015873,2]
[339974318,1728245481467,-500.0,0.00015873,2]
[339974319,1728245481478,-607.92004584,0.00015873,2]
[339974320,1728245481488,-500.0,0.00015873,2]
[339974321,1728245481500,-500.0,0.00015873,2]
[339974322,1728245481510,-500.0,0.00015873,2]
[339974323,1728245481521,-500.0,0.00015873,2]
[339974324,1728245481531,-500.0,0.00015873,2]
[339974325,1728245481543,-9980.07040589,0.00015873,2]
[339974326,1728245481556,-500.0,0.00015877,2]
[339974327,1728245481567,-151.82849824,0.00015877,2]
[339974328,1728245481580,-500.0,0.0001588,2]
[339974329,1728245481592,-500.0,0.0001588,2]
[339974330,1728245481603,-461.0,0.0001589,2]
[339974331,1728245481613,-811.88,0.0001589,2]
[339974332,1728245481625,-500.0,0.0001589,2]
[339974333,1728245481636,-212.096226,0.0001589,2]
[339974334,1728245481648,-212.09623184,0.0001589,2]
[339974335,1728245481659,-151.0,0.0001589,2]
[339974336,1728245481669,-321.9159,0.0001589,2]
[339974337,1728245481679,-321.9159,0.0001589,2]
[339974338,1728245481689,-151.0,0.0001589,2]
[339974339,1728245481700,-538.21,0.0001589,2]
[339974340,1728245481710,-500.0,0.0001589,2]
[339974341,1728245481722,-151.0,0.0001589,2]
[339974342,1728245481733,-500.0,0.0001589,2]
[339974343,1728245481743,-500.0,0.0001589,2]
[339974344,1728245481754,-565.32285675,0.0001589,2]
[339974345,1728245481764,-500.0,0.0001589,2]
[339974346,1728245481774,-690.31,0.0001589,2]
[339974347,1728245481784,-500.0,0.0001589,2]
[339974348,1728245481794,-500.0,0.0001589,2]
[339974349,1728245481805,-753.75,0.0001589,2]
[339974350,1728245481814,-500.0,0.0001589,2]
[339974351,1728245481824,-500.0,0.0001589,2]
[339974352,1728245481834,-151.0,0.0001589,2]
[339974353,1728245481845,-560.51,0.0001589,2]
[339974354,1728245481855,-500.0,0.0001589,2]
[339974355,1728245481864,-693.21,0.0001589,2]
[339974356,1728245481874,-750.67,0.0001589,2]
[339974357,1728245481883,-624.79,0.0001589,2]
[339974358,1728245481893,-500.0,0.0001589,2]
[339974359,1728245481902,-500.0,0.0001589,2]
[339974360,1728245481912,-151.0,0.0001589,2]
[339974361,1728245481922,-500.0,0.0001589,2]
[339974362,1728245481932,-500.0,0.0001589,2]
[339974363,1728245481942,-500.0,0.0001589,2]
[339974364,1728245481952,-621.15,0.0001589,2]
[339974365,1728245481961,-573.68,0.0001589,2]
[339974366,1728245481970,-159.041919,0.0001589,2]
[339974367,1728245481980,-500.0,0.0001589,2]
[339974368,1728245481990,-500.0,0.0001589,2]
[339974369,1728245482001,-500.0,0.0001589,2]
[339974370,1728245482013,-500.0,0.0001589,2]
[339974371,1728245482023,-566.65,0.0001589,2]
[339974372,1728245482035,-151.0,0.0001589,2]
[339974373,1728245482046,-500.0,0.0001589,2]
[339974374,1728245482057,-1154.19,0.0001589,2]
[339974375,1728245482069,-500.0,0.0001589,2]
[339974376,1728245482080,-250.86802544,0.0001589,2]
[339974377,1728245482092,-511.18,0.0001589,2]
[339974378,1728245482103,-1179.38,0.0001589,2]
[339974379,1728245482114,-751.93,0.0001589,2]
[339974380,1728245482124,-500.0,0.0001589,2]
[339974381,1728245482133,-500.0,0.0001589,2]
[339974382,1728245482143,-151.0,0.0001589,2]
[339974383,1728245482158,-500.0,0.0001589,2]
[339974384,1728245482168,-250.26966341,0.0001589,2]
[339974385,1728245482180,-500.0,0.0001589,2]
[339974386,1728245482192,-734.54,0.0001589,2]
[339974387,1728245482204,-244.100492,0.0001589,2]
[339974388,1728245482214,-151.0,0.0001589,2]
[339974389,1728245482224,-500.0,0.0001589,2]
[339974390,1728245482234,-500.0,0.0001589,2]
[339974391,1728245482244,-244.100492,0.0001589,2]
[339974392,1728245482253,-1105.529882,0.0001589,2]
[339974393,1728245482262,-500.0,0.0001589,2]
[339974394,1728245482271,-500.0,0.0001589,2]
[339974395,1728245482281,-1105.529882,0.0001589,2]
[339974396,1728245482290,-500.0,0.0001589,2]
[339974397,1728245482299,-500.0,0.0001589,2]
[339974398,1728245482308,-782.03,0.0001589,2]
[339974399,1728245482317,-500.0,0.0001589,2]
[339974400,1728245482327,-500.0,0.0001589,2]
[339974401,1728245482336,-500.0,0.0001589,2]
[339974402,1728245482346,-500.0,0.0001589,2]
[339974403,1728245482356,-600.57,0.0001589,2]
[339974404,1728245482365,-1034.12,0.0001589,2]
[339974405,1728245482375,-500.0,0.0001589,2]
[339974406,1728245482384,-500.0,0.0001589,2]
[339974407,1728245482393,-500.0,0.0001589,2]
[339974408,1728245482402,-500.0,0.0001589,2]
[339974409,1728245482412,-500.0,0.0001589,2]
[339974410,1728245482421,-500.0,0.0001589,2]
[339974411,1728245482431,-151.0,0.0001589,2]
[339974412,1728245482440,-500.0,0.0001589,2]
[339974413,1728245482450,-206.027247,0.0001589,2]
[339974414,1728245482459,-500.0,0.0001589,2]
[339974415,1728245482469,-567.02,0.0001589,2]
[339974416,1728245482478,-547.51,0.0001589,2]
[339974417,1728245482487,-620.41,0.0001589,2]
[339974418,1728245482496,-500.0,0.0001589,2]
[339974419,1728245482506,-484.02471596,0.0001589,2]
[339974420,1728245482515,-500.0,0.0001589,2]
[339974421,1728245482525,-622.64,0.0001589,2]
[339974422,1728245482534,-500.0,0.0001589,2]
[339974423,1728245482543,-1766.09,0.0001589,2]
[339974424,1728245482552,-1018.45,0.0001589,2]
[339974425,1728245482561,-417.40005218,0.0001589,2]
[339974426,1728245482570,-646.49,0.0001589,2]
[339974427,1728245482579,-500.0,0.0001589,2]
[339974428,1728245482589,-500.0,0.0001589,2]
[339974429,1728245482598,-500.0,0.0001589,2]
[339974430,1728245482608,-151.0,0.0001589,2]
[339974431,1728245482617,-500.0,0.0001589,2]
[339974432,1728245482626,-151.0,0.0001589,2]
[339974433,1728245482636,-500.0,0.0001589,2]
[339974434,1728245482646,-548.58,0.0001589,2]
[339974435,1728245482656,-500.0,0.0001589,2]
[339974436,1728245482665,-500.0,0.0001589,2]
[339974437,1728245482771,-500.0,0.0001589,2]
[339974438,1728245482791,-642.06,0.0001589,2]
[339974439,1728245482802,-500.0,0.0001589,2]
[339974440,1728245482813,-500.0,0.0001589,2]
[339974441,1728245482823,-500.0,0.0001589,2]
[339974442,1728245482832,-732.29,0.0001589,2]
[339974443,1728245482842,-678.84,0.0001589,2]
[339974444,1728245482852,-744.55,0.0001589,2]
[339974445,1728245482863,-500.0,0.0001589,2]
[339974446,1728245482874,-500.0,0.0001589,2]
[339974447,1728245482885,-500.0,0.0001589,2]
[339974448,1728245482897,-610.927981,0.0001589,2]
[339974449,1728245482907,-500.0,0.0001589,2]
[339974450,1728245482915,-610.927981,0.0001589,2]
[339974451,1728245482925,-500.0,0.0001589,2]
[339974452,1728245482935,-500.0,0.0001589,2]
[339974453,1728245482945,-701.53,0.0001589,2]
[339974454,1728245482955,-977.67,0.0001589,2]
[339974455,1728245482964,-500.0,0.0001589,2]
[339974456,1728245482974,-500.0,0.0001589,2]
[339974457,1728245482984,-631.97,0.0001589,2]
[339974458,1728245482996,-151.0,0.0001589,2]
[339974459,1728245483008,-740.81,0.0001589,2]
[339974460,1728245483018,-566.27,0.0001589,2]
[339974461,1728245483028,-151.0,0.0001589,2]
[339974462,1728245483040,-1278.33,0.0001589,2]
[339974463,1728245483050,-605.99533095,0.0001589,2]
[339974464,1728245483061,-500.0,0.0001589,2]
[339974465,1728245483072,-500.0,0.0001589,2]
[339974466,1728245483083,-711.1,0.0001589,2]
[339974467,1728245483093,-500.0,0.0001589,2]
[339974468,1728245483104,-500.0,0.0001589,2]
[339974469,1728245483115,-500.0,0.0001589,2]
[339974470,1728245483127,-500.0,0.0001589,2]
[339974471,1728245483138,-500.0,0.0001589,2]
[339974472,1728245483149,-500.0,0.0001589,2]
[339974473,1728245483162,-500.0,0.0001589,2]
[339974474,1728245483173,-1687.43,0.0001589,2]
[339974475,1728245483185,-500.0,0.0001589,2]
[339974476,1728245483196,-500.0,0.0001589,2]
[339974477,1728245483208,-733.55402,0.0001589,2]
[339974478,1728245483221,-500.0,0.0001589,2]
[339974479,1728245483232,-500.0,0.0001589,2]
[339974480,1728245483243,-733.55402,0.0001589,2]
[339974481,1728245483253,-559.4,0.0001589,2]
[339974482,1728245483264,-620.94,0.0001589,2]
[339974483,1728245483275,-570.64,0.0001589,2]
[339974484,1728245483285,-590.68,0.0001589,2]
[339974485,1728245483295,-525.69,0.0001589,2]
[339974486,1728245483308,-731.95,0.0001589,2]
[339974487,1728245483318,-151.0,0.0001589,2]
[339974488,1728245483329,-500.0,0.0001589,2]
[339974489,1728245483340,-295.65903905,0.0001589,2]
[339974490,1728245483352,-1541.796647,0.0001589,2]
[339974491,1728245483363,-1541.796647,0.0001589,2]
[339974492,1728245483374,-164.707236,0.0001589,2]
[339974493,1728245483385,-749.78,0.0001589,2]
[339974494,1728245483395,-500.0,0.0001589,2]
[339974495,1728245483405,-500.0,0.0001589,2]
[339974496,1728245483416,-500.0,0.0001589,2]
[339974497,1728245483426,-506.98501598,0.0001589,2]
[339974498,1728245483435,-164.707236,0.0001589,2]
[339974499,1728245483445,-500.0,0.0001589,2]
[339974500,1728245483454,-500.0,0.0001589,2]
[339974501,1728245483463,-500.0,0.0001589,2]
[339974502,1728245483473,-850.21,0.0001589,2]
[339974503,1728245483483,-700.34,0.0001589,2]
[339974504,1728245483492,-500.0,0.0001589,2]
[339974505,1728245483501,-616.70199,0.0001589,2]
[339974506,1728245483510,-793.43,0.0001589,2]
[339974507,1728245483519,-681.81,0.0001589,2]
[339974508,1728245483528,-500.0,0.0001589,2]
[339974509,1728245483538,-500.0,0.0001589,2]
[339974510,1728245483548,-3394.923181,0.0001589,2]
[339974511,1728245483557,-618.07,0.0001589,2]
[339974512,1728245483567,-905.5,0.0001589,2]
[339974513,1728245483576,-3394.923181,0.0001589,2]
[339974514,1728245483586,-232.89053,0.0001589,2]
[339974515,1728245483597,-500.0,0.0001589,2]
[339974516,1728245483606,-232.89053,0.0001589,2]
[339974517,1728245483616,-1004.36,0.0001589,2]
[339974518,1728245483626,-769.79,0.0001589,2]
[339974519,1728245483635,-556.25,0.0001589,2]
[339974520,1728245483645,-500.0,0.0001589,2]
[339974521,1728245483655,-704.99,0.0001589,2]
[339974522,1728245483664,-511.68,0.0001589,2]
[339974523,1728245483673,-500.0,0.0001589,2]
[339974524,1728245483682,-249.41917491,0.0001589,2]
[339974525,1728245483692,-500.0,0.0001589,2]
[339974526,1728245483702,-500.0,0.0001589,2]
[339974527,1728245483711,-500.0,0.0001589,2]
[339974528,1728245483722,-716.88,0.0001589,2]
[339974529,1728245483733,-500.0,0.0001589,2]
[339974530,1728245483743,-1000.0,0.0001589,2]
[339974531,1728245483754,-1000.0,0.0001589,2]
[339974532,1728245483766,-1000.0,0.0001589,2]
[339974533,1728245483778,-1000.0,0.0001589,2]
[339974534,1728245483789,-1000.0,0.0001589,2]
[339974535,1728245483800,-1000.0,0.0001589,2]
[339974536,1728245483811,-1000.0,0.0001589,2]
[339974537,1728245483822,-1000.0,0.0001589,2]
[339974538,1728245483834,-1000.0,0.0001589,2]
[339974539,1728245483844,-500.0,0.0001589,2]
[339974540,1728245483855,-1000.0,0.0001589,2]
[339974541,1728245483865,-1000.0,0.0001589,2]
[339974542,1728245483875,-1000.0,0.0001589,2]
[339974543,1728245483886,-1000.0,0.0001589,2]
[339974544,1728245483897,-151.0,0.0001589,2]
[339974545,1728245483908,-1000.0,0.0001589,2]
[339974546,1728245483918,-1000.0,0.0001589,2]
[339974547,1728245483930,-500.0,0.0001589,2]
[339974548,1728245483940,-1213.0,0.0001589,2]
[339974549,1728245483951,-1000.0,0.0001589,2]
[339974550,1728245483961,-1000.0,0.0001589,2]
[339974551,1728245483971,-1000.0,0.0001589,2]
[339974552,1728245483981,-502.96,0.0001589,2]
[339974553,1728245483994,-1000.0,0.0001589,2]
[339974554,1728245484003,-1000.0,0.0001589,2]
[339974555,1728245484013,-1000.0,0.0001589,2]
[339974556,1728245484024,-500.0,0.0001589,2]
[339974557,1728245484035,-1000.0,0.0001589,2]
[339974558,1728245484046,-1000.0,0.0001589,2]
[339974559,1728245484055,-1000.0,0.0001589,2]
[339974560,1728245484065,-396.110102,0.0001589,2]
[339974561,1728245484075,-1000.0,0.0001589,2]
[339974562,1728245484087,-1000.0,0.0001589,2]
[339974563,1728245484098,-1000.0,0.0001589,2]
[339974564,1728245484107,-1000.0,0.0001589,2]
[339974565,1728245484119,-1000.0,0.0001589,2]
[339974566,1728245484130,-1000.0,0.0001589,2]
[339974567,1728245484142,-1000.0,0.0001589,2]
[339974568,1728245484156,-1000.0,0.0001589,2]
[339974569,1728245484165,-1000.0,0.0001589,2]
[339974570,1728245484175,-1000.0,0.0001589,2]
[339974571,1728245484184,-1000.0,0.0001589,2]
[339974572,1728245484195,-1000.0,0.0001589,2]
[339974573,1728245484206,-396.110102,0.0001589,2]
[339974574,1728245484217,-1000.0,0.0001589,2]
[339974575,1728245484230,-500.0,0.0001589,2]
[339974576,1728245484242,-1000.0,0.0001589,2]
[339974577,1728245484254,-500.0,0.0001589,2]
[339974578,1728245484263,-1000.0,0.0001589,2]
[339974579,1728245484273,-500.0,0.0001589,2]
[339974580,1728245484285,-1000.0,0.0001589,2]
[339974581,1728245484294,-1000.0,0.0001589,2]
[339974582,1728245484303,-255.019859,0.0001589,2]
[339974583,1728245484314,-1000.0,0.0001589,2]
[339974584,1728245484324,-1000.0,0.0001589,2]
[339974585,1728245484333,-1000.0,0.0001589,2]
[339974586,1728245484344,-1000.0,0.0001589,2]
[339974587,1728245484354,-1000.0,0.0001589,2]
[339974588,1728245484363,-1000.0,0.0001589,2]
[339974589,1728245484373,-500.0,0.0001589,2]
[339974590,1728245484382,-1000.0,0.0001589,2]
[339974591,1728245484392,-255.019859,0.0001589,2]
[339974592,1728245484402,-1000.0,0.0001589,2]
[339974593,1728245484411,-1000.0,0.0001589,2]
[339974594,1728245484422,-1000.0,0.0001589,2]
[339974595,1728245484431,-640.83,0.0001589,2]
[339974596,1728245484441,-1000.0,0.0001589,2]
[339974597,1728245484453,-1000.0,0.0001589,2]
[339974598,1728245484465,-1000.0,0.0001589,2]
[339974599,1728245484476,-1000.0,0.0001589,2]
[339974600,1728245484486,-1000.0,0.0001589,2]
[339974601,1728245484497,-1000.0,0.0001589,2]
[339974602,1728245484508,-1000.0,0.0001589,2]
[339974603,1728245484518,-1000.0,0.0001589,2]
[339974604,1728245484528,-799.58,0.0001589,2]
[339974605,1728245484538,-1000.0,0.0001589,2]
[339974606,1728245484551,-1000.0,0.0001589,2]
[339974607,1728245484561,-1000.0,0.0001589,2]